fUST/lending_fUST_20260215
["ID","MTS","AMOUNT","RATE_DAILY","PERIOD"]
[405435714,1771159864266,500.0,0.00013699,2]
[405435715,1771159864300,1135.31740418,0.00014795,2]
[405435716,1771159866751,500.0,0.00013273,2]
[405435717,1771159866779,1034.90536496,0.00014916,2]
[405435718,1771159866814,1000.0,0.00013821,2]
[405435719,1771159866868,1500.0,0.00014368,2]
[405435722,1771159869469,500.0,0.00013699,2]
[405435723,1771159869516,500.67614391,0.00014247,2]
[405435725,1771159870458,500.0,0.00013699,2]
[405435726,1771159870524,1000.0,0.00014247,2]
[405435727,1771159870578,1500.0,0.00014795,2]
[405435728,1771159872115,1000.0,0.00014247,2]
[405435729,1771159884475,1000.0,0.00013821,2]
[405435730,1771159884521,500.0,0.00013273,2]
[405435731,1771159884574,1003.88730419,0.00014368,2]
[405435732,1771159889591,500.0,0.00013699,2]
[405435733,1771159889628,1000.0,0.00014247,2]
[405435734,1771159889681,832.93679327,0.00014795,2]
[405435735,1771159893371,500.0,0.00013699,2]
[405435736,1771159893422,1000.0,0.00014247,2]
[405435737,1771159893472,505.505616,0.00014795,2]
[405435738,1771159894481,500.0,0.00013699,2]
[405435739,1771159894514,1000.0,0.00014247,2]
[405435740,1771159894546,500.0,0.00013699,2]
[405435741,1771159894574,334.47335005,0.00014247,2]
[405435742,1771159894605,447.98893381,0.00014795,2]
[405435743,1771159894710,500.0,0.00013699,2]
[405435744,1771159894760,1000.0,0.00014247,2]
[405435745,1771159895082,500.0,0.00013273,2]
[405435746,1771159895146,1000.0,0.00013821,2]
[405435747,1771159895198,253.03894278,0.00014368,2]
[405435748,1771159898893,500.0,0.00013699,2]
[405435749,1771159899973,501.24504315,0.00013699,2]
[405435750,1771159902030,469.96251876,0.00013273,2]
[405435751,1771159905490,500.0,0.00013699,2]
[405435752,1771159905557,1000.0,0.00014247,2]
[405435753,1771159905611,482.23150023,0.00014795,2]
[405435754,1771159924891,500.0,0.00013273,2]
[405435755,1771159925608,500.0,0.00013273,2]
[405435756,1771159925658,280.2323295,0.00013821,2]
[405435757,1771159926319,500.0,0.00013699,2]
[405435758,1771159926370,942.24164672,0.00014247,2]
[405435759,1771159926606,500.58583868,0.00013273,2]
[405435760,1771159928330,500.0,0.00013273,2]
[405435761,1771159928521,405.30562702,0.00013273,2]
[405435762,1771159928555,500.61278183,0.00013699,2]
[405435763,1771159928971,500.0,0.00013699,2]
[405435764,1771159929009,500.80331725,0.00014247,2]
[405435765,1771159929411,487.34649707,0.00013699,2]
[405435766,1771159929590,500.0,0.00013273,2]
[405435767,1771159929642,500.0,0.00013821,2]
[405435768,1771159929786,500.0,0.00013699,2]
[405435769,1771159930180,500.71172445,0.00013699,2]
[405435770,1771159930303,309.44403142,0.00013699,2]
[405435771,1771159930537,500.0,0.00013699,2]
[405435772,1771159930567,500.0,0.00014247,2]
[405435773,1771159932473,500.0,0.00013699,2]
[405435774,1771159932519,520.49455266,0.00014247,2]
[405435775,1771159934743,641.02120773,0.00013699,2]
[405435776,1771159936262,500.0,0.00013699,2]
[405435777,1771159936325,1000.0,0.00014247,2]
[405435778,1771159942108,500.28375802,0.00013699,2]
[405435779,1771159968135,-500.0,0.00015688,2]
[405435780,1771159974445,1.1691,0.00015633,2]
[405435781,1771159974469,207.35608531,0.00015633,2]
[405435782,1771160017612,1072.0,0.0002354,120]
[405435785,1771160104975,198.54215924,0.00013273,2]
[405435786,1771160110973,500.62351729,0.00013699,2]
[405435787,1771160114975,93.47823816,0.00014247,2]
[405435788,1771160115001,368.10248288,0.00014247,2]
[405435789,1771160115036,500.0,0.00013699,2]
[405435790,1771160115631,131.89751712,0.00013699,2]
[405435791,1771160115656,368.10248288,0.00013699,2]
[405435792,1771160115713,631.89751712,0.00014247,2]
[405435793,1771160115739,293.3386459,0.00014247,2]
[405435794,1771160115768,615.75647517,0.00013699,2]
[405435795,1771160119011,90.90487893,0.00013699,2]
[405435796,1771160119036,409.85006213,0.00013699,2]
[405435797,1771160121147,180.50448586,0.00013699,2]
[405435798,1771160122311,409.64545201,0.00013699,2]
[405435799,1771160122335,90.35454799,0.00013699,2]
[405435800,1771160123036,159.3367278,0.00013699,2]
[405435801,1771160126329,500.0,0.00013699,2]
[405435803,1771160186856,150.0,0.00013673,2]
[405435804,1771160186915,351.91560759,0.00014221,2]
[405435805,1771160187064,500.0,0.00013273,2]
[405435806,1771160187113,1000.0,0.00013821,2]
[405435807,1771160187168,1005.44729947,0.00014368,2]
[405435808,1771160187939,500.0,0.00013273,2]
[405435809,1771160188000,1000.0,0.00013821,2]
[405435810,1771160191846,500.0,0.00013273,2]
[405435811,1771160191898,1000.0,0.00013821,2]
[405435812,1771160192107,1500.0,0.00014368,2]
[405435813,1771160194510,404.86368601,0.00013273,2]
[405435814,1771160198957,500.0,0.00013273,2]
[405435815,1771160198992,1000.0,0.00013821,2]
[405435816,1771160199027,510.1221428,0.00014368,2]
[405435817,1771160201414,561.29126179,0.00013273,2]
[405435818,1771160207577,500.0,0.00013699,2]
[405435819,1771160207643,1000.0,0.00014247,2]
[405435820,1771160207694,1177.05502283,0.00014795,2]
[405435821,1771160224832,500.7563451,0.00013273,2]
[405435822,1771160235191,5000.0,0.000156,2]
[405435823,1771160243832,2521.78706988,0.000156,2]
[405435824,1771160260133,5000.0,0.000156,2]
[405435825,1771160282995,5000.0,0.000156,2]
[405435826,1771160305921,5000.0,0.000156,2]
[405435827,1771160329133,5000.0,0.000156,2]
[405435828,1771160352759,5000.0,0.000156,2]
[405435829,1771160375205,5000.0,0.000156,2]
[405435830,1771160398323,5000.0,0.000156,2]
[405435831,1771160421409,3164.85190675,0.000156,2]
[405435832,1771160452768,13000.49,0.000156,2]
[405435833,1771160466234,587.57777081,0.00013821,2]
[405435834,1771160466303,500.0,0.00013273,2]
[405435835,1771160466808,500.6396717,0.00013699,2]
[405435836,1771160469559,221.59852113,0.00013699,2]
[405435837,1771160472035,500.0,0.00013273,2]
[405435838,1771160472090,500.0,0.00013821,2]
[405435839,1771160476604,158.61441684,0.00013699,2]
[405435840,1771160488727,180.36969361,0.00013699,2]
[405435841,1771160489185,500.0,0.00013699,2]
[405435842,1771160489280,500.59981331,0.00014247,2]
[405435843,1771160489584,500.0,0.00013699,2]
[405435844,1771160489638,500.0,0.00014247,2]
[405435845,1771160493063,382.315161,0.000156,2]
[405435846,1771160499706,500.0,0.00013699,2]
[405435847,1771160499741,1000.0,0.00014247,2]
[405435848,1771160510843,500.0,0.00013273,2]
[405435849,1771160510880,1000.0,0.00013821,2]
[405435850,1771160510927,1500.0,0.00014368,2]
[405435851,1771160510986,702.57278017,0.00014916,2]
[405435852,1771160517332,500.0,0.00013699,2]
[405435853,1771160518961,-150.0,0.0001565,7]
[405435856,1771160709152,500.0,0.00013699,2]
[405435857,1771160711082,5549.44917055,0.00015,2]
[405435858,1771160715336,500.91731366,0.00014247,2]
[405435861,1771160793741,160.63561426,0.00013699,2]
[405435862,1771160800270,504.56344371,0.00013699,2]
[405435922,1771161032254,-645.0,0.00015602,2]
[405435923,1771161032264,-845.032954,0.00015602,2]
[405435924,1771161032274,-887.51670121,0.0001565,2]
[405435944,1771161038358,-366.00018056,0.0001565,2]
[405435945,1771161038367,-150.0,0.00015732,2]
[405435946,1771161038377,-1564.80993121,0.00015815,2]
[405435990,1771161040788,-1881.34872554,0.00015815,2]
[405436035,1771161043695,-440.94138445,0.00015815,2]
[405436037,1771161043705,-614.82009374,0.00015924,2]
[405436054,1771161045765,1690.54397142,0.000156,2]
[405436069,1771161046398,-385.17990626,0.00015924,2]
[405436070,1771161046407,-1200.0,0.00016437,2]
[405436071,1771161046417,-150.0,0.00016438,2]
[405436072,1771161046427,-150.20960341,0.00016438,2]
[405436073,1771161046438,-300.0,0.00016577,2]
[405436074,1771161046451,-300.0,0.00016577,2]
[405436075,1771161046460,-300.0,0.00016577,2]
[405436076,1771161046470,-755.02539623,0.00016578,2]
[405436077,1771161046479,-300.0,0.0001658,2]
[405436078,1771161046490,-415.63670358,0.00016677,2]
[405436079,1771161046500,-500.0,0.00016677,2]
[405436080,1771161046510,-500.0,0.00016677,2]
[405436081,1771161046520,-601.02342491,0.00016677,2]
[405436082,1771161046529,-502.92551482,0.00016677,2]
[405436083,1771161046539,-505.62043428,0.00016677,2]
[405436084,1771161046548,-500.0,0.00016677,2]
[405436085,1771161046557,-500.0,0.00016677,2]
[405436086,1771161046567,-500.0,0.00016677,2]
[405436087,1771161046577,-500.0,0.00016677,2]
[405436088,1771161046586,-500.0,0.00016677,2]
[405436089,1771161046595,-500.0,0.00016677,2]
[405436090,1771161046604,-500.0,0.00016677,2]
[405436091,1771161046614,-500.0,0.00016677,2]
[405436092,1771161046624,-500.0,0.00016677,2]
[405436093,1771161046634,-500.0,0.00016677,2]
[405436094,1771161046644,-500.0,0.00016677,2]
[405436095,1771161046655,-500.0,0.00016677,2]
[405436096,1771161046666,-500.0,0.00016677,2]
[405436097,1771161046676,-588.3747864,0.00016677,2]
[405436098,1771161046685,-500.0,0.00016677,2]
[405436099,1771161046695,-307.79346763,0.00016677,2]
[405436100,1771161046704,-500.0,0.00016677,2]
[405436101,1771161046713,-500.0,0.00016677,2]
[405436102,1771161046723,-500.0,0.00016677,2]
[405436103,1771161046732,-500.0,0.00016677,2]
[405436104,1771161046742,-500.0,0.00016677,2]
[405436105,1771161046751,-500.0,0.00016677,2]
[405436106,1771161046760,-500.0,0.00016677,2]
[405436107,1771161046770,-500.0,0.00016677,2]
[405436108,1771161046779,-500.0,0.00016677,2]
[405436109,1771161046788,-500.0,0.00016677,2]
[405436110,1771161046798,-500.0,0.00016677,2]
[405436111,1771161046807,-500.0,0.00016677,2]
[405436112,1771161046817,-500.0,0.00016677,2]
[405436113,1771161046827,-500.0,0.00016677,2]
[405436114,1771161046836,-500.0,0.00016677,2]
[405436115,1771161046846,-500.0,0.00016677,2]
[405436116,1771161046856,-500.0,0.00016677,2]
[405436117,1771161046866,-500.0,0.00016677,2]
[405436118,1771161046875,-500.0,0.00016677,2]
[405436119,1771161046885,-500.0,0.00016677,2]
[405436120,1771161046894,-500.0,0.00016677,2]
[405436121,1771161046904,-500.0,0.00016677,2]
[405436122,1771161046914,-500.0,0.00016677,2]
[405436123,1771161046924,-500.0,0.00016677,2]
[405436124,1771161046933,-500.0,0.00016677,2]
[405436125,1771161046943,-500.0,0.00016677,2]
[405436126,1771161046951,-500.0,0.00016677,2]
[405436127,1771161046961,-500.0,0.00016677,2]
[405436128,1771161046971,-500.0,0.00016677,2]
[405436129,1771161046982,-500.0,0.00016677,2]
[405436130,1771161046993,-500.0,0.00016677,2]
[405436131,1771161047002,-500.0,0.00016677,2]
[405436132,1771161047011,-500.0,0.00016677,2]
[405436133,1771161047022,-473.64276624,0.00016677,2]
[405436134,1771161047033,-500.0,0.00016677,2]
[405436135,1771161047042,-500.0,0.00016677,2]
[405436136,1771161047054,-491.7170115,0.00016677,2]
[405436137,1771161047065,-215.1194371,0.00016677,2]
[405436138,1771161047075,-500.0,0.00016677,2]
[405436139,1771161047085,-500.0,0.00016677,2]
[405436140,1771161047095,-500.0,0.00016677,2]
[405436141,1771161047105,-500.0,0.00016677,2]
[405436142,1771161047116,-500.0,0.00016677,2]
[405436143,1771161047127,-500.0,0.00016677,2]
[405436144,1771161047139,-500.0,0.00016677,2]
[405436145,1771161047149,-500.0,0.00016677,2]
[405436146,1771161047161,-500.0,0.00016677,2]
[405436147,1771161047171,-500.0,0.00016677,2]
[405436148,1771161047182,-500.0,0.00016677,2]
[405436149,1771161047192,-500.0,0.00016677,2]
[405436150,1771161047202,-500.0,0.00016677,2]
[405436151,1771161047213,-500.0,0.00016677,2]
[405436152,1771161047224,-500.0,0.00016677,2]
[405436153,1771161047235,-500.0,0.00016677,2]
[405436154,1771161047246,-500.0,0.00016677,2]
[405436155,1771161047256,-500.0,0.00016677,2]
[405436156,1771161047268,-500.0,0.00016677,2]
[405436157,1771161047278,-500.0,0.00016677,2]
[405436158,1771161047288,-500.0,0.00016677,2]
[405436159,1771161047298,-255.52027801,0.00016677,2]
[405436160,1771161047308,-500.0,0.00016677,2]
[405436161,1771161047317,-500.0,0.00016677,2]
[405436162,1771161047328,-500.0,0.00016677,2]
[405436163,1771161047338,-500.0,0.00016677,2]
[405436164,1771161047348,-500.0,0.00016677,2]
[405436165,1771161047358,-500.0,0.00016677,2]
[405436166,1771161047369,-500.0,0.00016677,2]
[405436167,1771161047379,-500.0,0.00016677,2]
[405436168,1771161047389,-500.0,0.00016677,2]
[405436169,1771161047399,-500.0,0.00016677,2]
[405436170,1771161047408,-500.0,0.00016677,2]
[405436171,1771161047418,-500.0,0.00016677,2]
[405436172,1771161047427,-500.0,0.00016677,2]
[405436173,1771161047438,-500.0,0.00016677,2]
[405436174,1771161047450,-636.29211667,0.0001668,2]
[405436175,1771161047460,-20000.0,0.00016785,2]
[405436176,1771161047470,-4080.84,0.0001688,3]
[405436177,1771161047480,-6121.25,0.0001688,3]
[405436178,1771161047491,-3060.63,0.0001688,3]
[405436179,1771161047500,-1530.31,0.0001688,3]
[405436180,1771161047509,-765.16,0.0001688,3]
[405436181,1771161047521,-382.58,0.0001688,3]
[405436182,1771161047531,-191.29,0.0001688,3]
[405436183,1771161047540,-573.89,0.0001688,3]
[405436184,1771161047550,-85078.08748228,0.0001689,2]
[405436185,1771161071952,479.24822683,0.00013273,2]
[405436186,1771161074005,500.0,0.00013273,2]
[405436187,1771161074074,1008.71108275,0.00013821,2]
[405436188,1771161075574,500.0,0.00013273,2]
[405436189,1771161075631,500.0,0.00013821,2]
[405436190,1771161075704,537.98895604,0.00013699,2]
[405436191,1771161075776,500.0,0.00013273,2]
[405436192,1771161076074,500.0,0.00013699,2]
[405436193,1771161076148,503.13063771,0.00014247,2]
[405436194,1771161076409,287.71384729,0.00013699,2]
[405436195,1771161077439,500.0,0.00013699,2]
[405436196,1771161077500,1001.10016724,0.00014247,2]
[405436197,1771161077713,500.0,0.00013699,2]
[405436198,1771161077771,563.91756849,0.00014247,2]
[405436199,1771161078225,1004.2102287,0.00014247,2]
[405436200,1771161078258,500.0,0.00013699,2]
[405436201,1771161079093,500.0,0.00013699,2]
[405436202,1771161079144,503.55351473,0.00014247,2]
[405436203,1771161079247,500.0,0.00013699,2]
[405436204,1771161079277,1000.0,0.00014247,2]
[405436205,1771161079330,500.0,0.00014795,2]
[405436206,1771161079795,1000.0,0.00014247,2]
[405436207,1771161079859,500.0,0.00013699,2]
[405436208,1771161080226,500.0,0.00013699,2]
[405436209,1771161080285,1000.0,0.00014247,2]
[405436210,1771161080340,1011.19037395,0.00014795,2]
[405436211,1771161084823,500.0,0.00013273,2]
[405436212,1771161084883,500.0,0.00013821,2]
[405436213,1771161087636,500.0,0.00013699,2]
[405436214,1771161087665,500.41639703,0.00014247,2]
[405436215,1771161089465,503.96990947,0.00013273,2]
[405436216,1771161092167,500.02136619,0.00013699,2]
[405436217,1771161092850,500.0,0.00013273,2]
[405436218,1771161093968,500.0,0.00013699,2]
[405436219,1771161093999,1000.0,0.00014247,2]
[405436220,1771161095792,667.50853331,0.00015342,2]
[405436221,1771161097651,1500.0,0.00014795,2]
[405436222,1771161106592,500.0,0.00013699,2]
[405436223,1771161111564,464.271838,0.00013273,2]
[405436224,1771161111655,500.0,0.00013699,2]
[405436225,1771161111692,1000.0,0.00014247,2]
[405436226,1771161111750,504.72358128,0.00014795,2]
[405436227,1771161112151,500.0,0.00013699,2]
[405436228,1771161112200,1000.0,0.00014247,2]
[405436229,1771161112255,1004.82386244,0.00014795,2]
[405436230,1771161123361,358.25575345,0.00014247,2]
[405436231,1771161123450,500.0,0.00013699,2]
[405436232,1771161124833,500.0,0.00013273,2]
[405436233,1771161124869,505.42471884,0.00013821,2]
[405436234,1771161129164,497.90105026,0.00013273,2]
[405436235,1771161129277,500.0,0.00013699,2]
[405436236,1771161129329,664.63995169,0.00014247,2]
[405436237,1771161129875,500.0,0.00013699,2]
[405436238,1771161129911,1000.0,0.00014247,2]
[405436239,1771161129963,721.40863651,0.00014795,2]
[405436240,1771161130047,164.63461031,0.00013699,2]
[405436241,1771161130174,500.0,0.00013273,2]
[405436242,1771161130235,1000.0,0.00013821,2]
[405436243,1771161131201,500.0,0.00013699,2]
[405436244,1771161131249,301.52384734,0.00014247,2]
[405436245,1771161131312,500.0,0.00013273,2]
[405436246,1771161131341,500.0,0.00013273,2]
[405436247,1771161131371,720.0155883,0.00013821,2]
[405436248,1771161131398,192.63545712,0.00013821,2]
[405436249,1771161131426,500.0,0.00013699,2]
[405436250,1771161131471,1006.10679538,0.00014247,2]
[405436251,1771161132051,500.0,0.00013699,2]
[405436252,1771161132097,1000.0,0.00014247,2]
[405436253,1771161132160,694.54617722,0.00014795,2]
[405436254,1771161133971,500.0,0.00013273,2]
[405436255,1771161134030,500.0,0.00013821,2]
[405436256,1771161134784,500.0,0.00013699,2]
[405436257,1771161134845,1000.0,0.00014247,2]
[405436258,1771161134899,959.79582892,0.00014795,2]
[405436259,1771161137308,500.0,0.00013699,2]
[405436260,1771161137356,1004.45412783,0.00014247,2]
[405436261,1771161137837,500.0,0.00013273,2]
[405436262,1771161137899,1000.0,0.00013821,2]
[405436263,1771161138090,1504.70901009,0.00014368,2]
[405436264,1771161139730,500.0,0.00013699,2]
[405436265,1771161139764,557.75835328,0.00014247,2]
[405436266,1771161148793,500.0,0.00013699,2]
[405436267,1771161148843,1000.0,0.00014247,2]
[405436268,1771161148903,1000.0,0.00014795,2]
[405436281,1771161308260,305.76837027,0.00013699,2]
[405436282,1771161314681,500.0,0.00013699,2]
[405436283,1771161314717,483.32609398,0.00014247,2]
[405436284,1771161315064,1000.0,0.00014247,2]
[405436285,1771161315102,500.0,0.00013699,2]
[405436286,1771161315130,500.0,0.00013699,2]
[405436287,1771161315158,503.78548097,0.00014795,2]
[405436288,1771161315185,1000.0,0.00014247,2]
[405436289,1771161315217,1004.38967495,0.00014795,2]
[405436290,1771161315285,500.0,0.00013699,2]
[405436291,1771161315350,432.66951923,0.00014247,2]
[405436292,1771161316019,500.0,0.00013699,2]
[405436293,1771161316066,500.0,0.00014247,2]
[405436294,1771161320951,500.0,0.00013273,2]
[405436295,1771161321009,1000.0,0.00013821,2]
[405436296,1771161321060,491.68335743,0.00014368,2]
[405436297,1771161321696,500.0,0.00013273,2]
[405436298,1771161322540,1016.06025722,0.00014247,2]
[405436299,1771161322583,500.0,0.00013699,2]
[405436300,1771161323462,500.0,0.00013273,2]
[405436301,1771161323494,533.779704,0.00013821,2]
[405436303,1771161365839,284.14803717,0.00013273,2]
[405436304,1771161384009,501.14381586,0.00013699,2]
[405436305,1771161385879,500.0,0.00013273,2]
[405436306,1771161385939,1002.32589535,0.00013821,2]
[405436307,1771161386593,500.0,0.00013821,2]
[405436308,1771161386671,500.0,0.00013273,2]
[405436309,1771161388410,500.49677815,0.00013699,2]
[405436310,1771161388974,501.44364052,0.00013699,2]
[405436311,1771161389335,500.0,0.00013699,2]
[405436312,1771161389374,1000.0,0.00014795,2]
[405436313,1771161389408,1000.0,0.00014247,2]
[405436314,1771161390350,504.98079118,0.00013699,2]
[405436315,1771161392430,503.40064122,0.00013273,2]
[405436316,1771161394166,500.0,0.00013699,2]
[405436317,1771161394218,933.98120373,0.00014247,2]
[405436318,1771161394431,500.0,0.00013699,2]
[405436319,1771161394489,864.11352414,0.00014247,2]
[405436320,1771161397111,502.39475349,0.00013699,2]
[405436321,1771161397138,772.02233928,0.00014247,2]
[405436322,1771161397170,500.0,0.00013699,2]
[405436323,1771161400705,500.0,0.00013273,2]
[405436324,1771161464568,31315.2044184,0.00015471,2]
[405436325,1771161544976,168.899945,0.00010854,2]
[405436326,1771161545173,168.899945,0.00011241,2]
[405436327,1771161545381,168.899945,0.00011629,2]
[405436328,1771161545579,168.899945,0.00012017,2]
[405436329,1771161545796,168.899945,0.00012404,2]
[405436330,1771161546001,168.899945,0.00012792,2]
[405436331,1771161549701,168.899945,0.0001318,2]
[405436332,1771161549889,168.899945,0.00013567,2]
[405436333,1771161550075,168.899945,0.00013955,2]
[405436334,1771161550283,168.899945,0.00014343,2]
[405436335,1771161550483,168.899945,0.0001473,2]
[405436336,1771161550684,168.899945,0.00015118,2]
[405436337,1771161550979,168.899945,0.00015506,2]
[405436339,1771161604827,200.25,0.00014,2]
[405436340,1771161605278,200.25,0.00014,2]
[405436341,1771161606228,200.25,0.000141,2]
[405436342,1771161606774,200.25,0.000141,2]
[405436343,1771161607259,200.25,0.000141,2]
[405436344,1771161607832,200.25,0.000141,2]
[405436345,1771161608381,200.25,0.000142,2]
[405436346,1771161608876,200.25,0.000142,2]
[405436347,1771161609429,200.25,0.000142,2]
[405436348,1771161609900,200.25,0.000143,2]
[405436349,1771161610470,200.25,0.000143,2]
[405436350,1771161611284,200.25,0.000143,2]
[405436351,1771161611850,200.25,0.000143,2]
[405436352,1771161612415,200.25,0.000144,2]
[405436353,1771161612970,200.25,0.000144,2]
[405436354,1771161613685,200.25,0.000144,2]
[405436355,1771161614318,200.25,0.000145,2]
[405436356,1771161614875,200.25,0.000145,2]
[405436357,1771161615341,200.25,0.000145,2]
[405436358,1771161615898,200.25,0.000145,2]
[405436359,1771161616643,200.25,0.000146,2]
[405436360,1771161617191,200.25,0.000146,2]
[405436361,1771161617804,200.25,0.000146,2]
[405436362,1771161618519,200.25,0.000147,2]
[405436363,1771161619071,200.25,0.000147,2]
[405436364,1771161619636,200.25,0.000147,2]
[405436365,1771161620411,200.25,0.000147,2]
[405436366,1771161620864,200.25,0.000148,2]
[405436367,1771161621424,200.25,0.000148,2]
[405436368,1771161621985,200.25,0.000148,2]
[405436369,1771161622545,200.25,0.000149,2]
[405436370,1771161623020,200.25,0.000149,2]
[405436371,1771161623575,200.25,0.000149,2]
[405436372,1771161624042,200.25,0.000149,2]
[405436373,1771161624626,200.25,0.00015,2]
[405436374,1771161625089,200.25,0.00015,2]
[405436375,1771161625644,200.25,0.00015,2]
[405436376,1771161626214,200.25,0.000151,2]
[405436377,1771161626876,200.25,0.000151,2]
[405436378,1771161627354,200.25,0.000151,2]
[405436379,1771161627891,200.25,0.000151,2]
[405436380,1771161628452,200.25,0.000152,2]
[405436381,1771161629007,200.25,0.000152,2]
[405436382,1771161629648,200.25,0.000152,2]
[405436383,1771161630048,200.25,0.000153,2]
[405436384,1771161630549,200.25,0.000153,2]
[405436385,1771161631520,200.25,0.000153,2]
[405436386,1771161632110,200.25,0.000153,2]
[405436387,1771161632621,200.25,0.000154,2]
[405436388,1771161633174,200.25,0.000154,2]
[405436389,1771161679189,500.0,0.00013273,2]
[405436390,1771161684965,254.30601791,0.00013821,2]
[405436391,1771161692521,500.0,0.00013699,2]
[405436392,1771161692559,248.27381144,0.00014247,2]
[405436393,1771161702120,500.0,0.00013699,2]
[405436394,1771161845887,5000.0,0.000156,2]
[405436395,1771161868279,1486.12796067,0.000156,2]
[405436396,1771161978659,500.0,0.00013273,2]
[405436397,1771161978694,1000.0,0.00013821,2]
[405436398,1771161978748,401.32607296,0.00014368,2]
[405436399,1771161985170,568.90559229,0.00013699,2]
[405436400,1771162002875,409.46156326,0.00015051,2]
[405436401,1771162005433,467.95607229,0.00015051,2]
[405436402,1771162009518,500.0,0.00013699,2]
[405436403,1771162009570,1001.74794287,0.00014247,2]
[405436406,1771162196457,-150.0,0.0001565,7]
[405436434,1771162232383,-327.18241082,0.0001565,7]
[405436437,1771162232395,-1970.36494279,0.0001565,7]
[405436441,1771162232405,-158.55183239,0.0001565,7]
[405436442,1771162232415,-150.0,0.00015762,2]
[405436444,1771162232424,-1200.0,0.00016141,2]
[405436447,1771162232434,-300.0,0.00016274,2]
[405436449,1771162232443,-300.0,0.00016274,2]
[405436450,1771162232453,-300.0,0.00016274,2]
[405436453,1771162232463,-300.0,0.00016274,2]
[405436455,1771162232473,-4567.5928465,0.00016275,2]
[405436474,1771162238492,-5184.35100019,0.00016275,2]
[405436476,1771162238503,-500.0,0.00016374,2]
[405436478,1771162238512,-500.0,0.00016374,2]
[405436480,1771162238521,-500.0,0.00016374,2]
[405436482,1771162238531,-575.5520278,0.00016374,2]
[405436483,1771162238541,-500.0,0.00016374,2]
[405436485,1771162238551,-412.79104857,0.00016374,2]
[405436487,1771162238561,-179.248,0.00016438,2]
[405436489,1771162238570,-156.12449561,0.00016438,2]
[405436491,1771162238580,-5377.35,0.00016567,3]
[405436493,1771162238589,-2688.67,0.00016567,3]
[405436495,1771162238598,-1344.34,0.00016567,3]
[405436497,1771162238608,-672.17,0.00016567,3]
[405436499,1771162238620,-336.08,0.00016567,3]
[405436501,1771162238631,-168.04,0.00016567,3]
[405436503,1771162238640,-504.17,0.00016567,3]
[405436505,1771162238649,-472.15,0.00016567,3]
[405436507,1771162238659,-295.09,0.00016567,3]
[405436509,1771162238668,-191.38,0.00016567,3]